bitfinex/quotes_ETHUSD_20260125
["timestamp","ask_amount","ask_price","bid_price","bid_amount"]
[1769359738187,12.48308871,2892.9,2892.0,0.002]
[1769359741635,12.48308871,2892.9,2892.0,0.0884648]
[1769359741798,12.48308871,2893.3,2892.2,0.0864648]
[1769359741993,12.48308871,2893.3,2892.0,0.0884648]
[1769359741994,13.73149758,2893.3,2892.3,0.0864648]
[1769359742215,12.48308871,2893.3,2892.3,0.0864648]
[1769359743930,0.001,2893.4,2892.5,0.0864648]
[1769359745395,0.001,2893.4,2892.4,0.0864648]
[1769359746206,0.001,2893.4,2892.4,0.86432944]
[1769359746692,0.001,2893.4,2892.5,0.0864648]
[1769359748434,0.001,2893.4,2892.2,8.91725552]
[1769359748435,0.001,2893.4,2892.4,0.0864648]
[1769359748600,0.001,2893.4,2892.4,1.07327462]
[1769359749529,0.001,2893.2,2892.6,0.0864648]
[1769359750124,0.001,2893.2,2892.5,0.95076473]
[1769359750499,0.001,2893.2,2892.7,0.0864648]
[1769359750724,0.001,2893.2,2892.8,0.724]
[1769359752836,0.001,2893.2,2892.4,1.07327462]
[1769359753041,0.001,2893.2,2892.9,0.724]
[1769359754001,0.001,2893.2,2892.4,0.0864648]
[1769359754232,0.001,2893.2,2892.9,0.724]
[1769359757254,12.35909606,2893.9,2893.0,0.0864648]
[1769359757444,12.35909606,2894.2,2893.0,0.0864648]
[1769359757649,12.36009606,2894.0,2893.0,0.0864648]
[1769359759950,13.59610567,2894.0,2893.1,0.724]
[1769359760337,12.36009606,2894.0,2893.1,0.724]
[1769359760865,12.36009606,2894.0,2892.8,0.0864648]
[1769359761176,12.36009606,2894.0,2893.2,0.724]
[1769359761374,12.35909606,2893.7,2893.2,0.724]
[1769359762646,0.001,2893.8,2893.2,0.724]
[1769359765342,12.35109606,2894.0,2893.2,0.724]
[1769359766965,12.35109606,2894.0,2893.3,0.724]
[1769359769174,12.35909606,2894.7,2893.3,0.724]
[1769359769379,12.35909606,2894.5,2893.3,0.724]
[1769359769586,12.35909606,2894.5,2893.4,8.92425552]
[1769359769878,12.35909606,2894.5,2893.3,0.724]
[1769359769879,12.35909606,2894.5,2893.5,0.0864648]
[1769359770445,12.35909606,2894.5,2893.5,0.95046475]
[1769359771157,12.35909606,2895.4,2893.7,0.0864648]
[1769359771377,12.35909606,2895.2,2893.7,9.91172755]
[1769359771684,12.35909606,2895.2,2893.9,0.0864648]
[1769359771984,12.35909606,2895.2,2893.8,0.0864648]
[1769359772914,0.001,2894.5,2893.8,0.0864648]
[1769359773059,0.001,2894.5,2894.0,0.0864648]
[1769359773252,12.32885564,2894.5,2894.0,0.724]
[1769359773450,12.32885564,2894.5,2893.5,0.0864648]
[1769359773674,12.32885564,2894.5,2893.6,0.724]
[1769359774590,12.32885564,2894.5,2893.2,0.86408736]
[1769359774799,12.32885564,2894.5,2893.6,0.724]
[1769359775093,0.001,2894.5,2893.9,0.0864648]
[1769359775251,12.32885564,2894.5,2893.7,0.0864648]
[1769359775451,12.32885564,2894.5,2893.8,0.724]
[1769359776091,0.001,2894.5,2893.8,0.724]
[1769359776297,0.001,2894.5,2893.9,0.0864648]
[1769359779092,0.001,2894.5,2894.0,0.724]
[1769359781696,0.001,2894.5,2893.9,0.0864648]
[1769359781901,0.001,2894.5,2894.0,0.724]
[1769359783297,12.15502611,2894.8,2894.0,1.58785438]
[1769359783477,12.32785564,2895.0,2894.1,0.0864648]
[1769359784282,0.001,2894.3,2894.1,0.0864648]
[1769359784600,12.15402709,2895.0,2894.1,0.0864648]
[1769359786302,12.15402709,2895.0,2894.0,0.724]
[1769359786674,12.15402709,2895.0,2894.1,0.17979288]
[1769359787473,12.15402709,2895.0,2893.9,0.987464]
[1769359787705,12.15402709,2895.0,2893.7,0.724]
[1769359789292,12.15402709,2895.0,2893.6,0.724]
[1769359790581,12.15402709,2895.0,2893.7,0.0864648]
[1769359791910,12.15402709,2895.0,2893.6,0.724]
[1769359792310,13.01759278,2895.0,2893.6,0.724]
[1769359792505,12.32785564,2894.8,2893.6,0.724]
[1769359793133,12.32785564,2894.8,2893.1,3.8664648]
[1769359793134,13.19148174,2894.8,2893.1,3.8664648]
[1769359793298,12.32785564,2894.6,2893.2,0.724]
[1769359793698,12.32785564,2894.6,2892.8,12.64128925]
[1769359793699,12.32785564,2894.6,2892.6,9.2709136]
[1769359793908,12.32785564,2894.4,2892.7,1.73752038]
[1769359794230,12.32785564,2894.2,2892.8,0.724]
[1769359794397,12.32785564,2894.2,2892.8,0.8104648]
[1769359794799,13.19166557,2894.2,2892.1,4.03616184]
[1769359794995,13.19166557,2894.2,2892.4,0.0864648]
[1769359795231,13.19166557,2894.2,2892.5,0.724]
[1769359795442,12.32785564,2894.0,2892.5,0.724]
[1769359796019,12.32785564,2894.0,2892.6,0.0864648]
[1769359796404,12.32785564,2894.0,2892.7,0.002]
[1769359796601,12.32785564,2894.0,2892.8,0.0864648]
[1769359797234,12.32785564,2894.0,2893.2,0.0864648]
[1769359797438,12.32785564,2894.3,2893.2,0.0864648]
[1769359797655,12.32785564,2892.9,2892.0,0.0884648]
[1769359797830,12.32785564,2892.9,2891.1,0.002]
[1769359798006,4.29576835,2893.4,2891.4,0.724]
[1769359798007,12.32785564,2892.7,2891.4,0.724]
[1769359798616,12.32785564,2892.7,2891.1,0.002]
[1769359798821,12.32785564,2892.5,2891.4,0.724]
[1769359799108,13.19216283,2892.5,2891.4,0.724]
[1769359799445,13.19216283,2892.5,2891.5,0.724]
[1769359800235,12.32785564,2892.5,2891.5,0.724]
[1769359800639,12.32785564,2892.5,2891.1,0.002]
[1769359800802,12.32785564,2892.3,2891.4,0.724]
[1769359803946,12.51603663,2893.1,2891.5,9.6227728]
[1769359804110,12.51603663,2893.1,2891.6,0.12104772]
[1769359804311,12.51603663,2893.1,2891.6,0.0864648]
[1769359805414,12.51603663,2893.1,2891.6,9.6227728]
[1769359805614,12.51603663,2892.9,2891.7,1.04873536]
[1769359806249,12.51603663,2893.2,2891.8,9.536308]
[1769359806405,12.51603663,2893.2,2891.8,9.6227728]
[1769359807722,12.51603663,2893.2,2891.8,10.48727528]
[1769359808044,12.51603663,2893.2,2891.8,9.6227728]
[1769359808246,12.51603663,2893.2,2891.9,1.14496116]
[1769359808751,12.51603663,2893.2,2892.0,0.002]
[1769359809115,12.51603663,2893.2,2892.0,0.0884648]
[1769359809657,12.51603663,2893.2,2892.1,0.03457695]
[1769359810153,12.51603663,2893.9,2892.2,9.6227728]
[1769359810341,12.51603663,2893.9,2892.6,0.0864648]
[1769359811639,12.51603663,2893.9,2892.6,0.9507174]
[1769359811845,12.51603663,2893.9,2892.8,0.0864648]
[1769359814155,12.51603663,2893.9,2892.9,0.724]
[1769359814356,13.74882219,2894.2,2892.9,10.260308]
[1769359814557,12.51603663,2894.2,2893.0,10.73522442]
[1769359814857,12.51603663,2894.2,2893.2,0.0864648]
[1769359815882,12.01581024,2894.4,2893.4,0.0864648]
[1769359816031,10.24,2895.1,2893.4,0.0864648]
[1769359816032,12.01581024,2895.0,2893.4,0.0864648]
[1769359816231,12.01581024,2894.8,2893.5,0.96227728]
[1769359818062,12.01581024,2894.8,2893.5,1.82625305]
[1769359818925,12.01581024,2894.8,2893.6,0.0864648]
[1769359819125,12.01581024,2894.8,2893.7,0.724]
[1769359820954,12.01581024,2894.8,2893.7,1.58793416]
[1769359821156,0.001,2894.6,2893.8,0.0864648]
[1769359821362,0.001,2894.6,2893.7,1.58793416]
[1769359821363,0.001,2894.6,2893.7,0.724]
[1769359821743,12.00817138,2894.8,2893.7,0.724]
[1769359822473,12.00817138,2894.8,2893.7,1.58794547]
[1769359822635,12.00817138,2894.8,2893.7,0.724]
[1769359822838,12.00817138,2894.8,2893.7,1.58793762]
[1769359823242,12.00817138,2894.8,2893.8,0.59949478]
[1769359825180,12.00817138,2894.8,2893.8,0.51302998]
[1769359825490,12.00817138,2894.8,2893.9,0.724]
[1769359825634,12.00817138,2894.8,2894.0,0.724]
[1769359826970,12.00817138,2894.8,2894.1,0.724]
[1769359828673,12.01581024,2895.5,2894.1,0.724]
[1769359829069,12.01581024,2895.5,2894.1,0.8104648]
[1769359829284,12.01581024,2895.5,2894.2,1.03544117]
[1769359830395,12.87922389,2895.5,2894.1,0.724]
[1769359830597,12.01581024,2895.5,2894.1,0.724]
[1769359831898,12.01581024,2895.5,2894.1,11.13177002]
[1769359832906,0.0008,2895.6,2894.1,11.13177002]
[1769359832907,12.01581024,2895.2,2894.2,0.0864648]
[1769359833397,12.01581024,2895.2,2894.2,10.49420376]
[1769359833611,12.01581024,2895.2,2894.3,1.12182038]
[1769359833982,12.01581024,2895.2,2894.4,0.0864648]
[1769359836774,12.01581024,2895.2,2894.3,1.12182038]
[1769359837171,12.01581024,2895.2,2894.4,0.724]
[1769359837387,12.01581024,2895.2,2894.5,0.724]
[1769359838982,12.01581024,2895.2,2894.2,0.0864648]
[1769359839185,12.01581024,2895.2,2894.6,0.724]
[1769359839983,12.01581024,2895.2,2894.1,9.54394686]
[1769359840190,12.01581024,2895.2,2894.2,1.67839469]
[1769359840391,12.01581024,2895.2,2894.2,0.724]
[1769359841276,12.01581024,2895.2,2894.3,0.0864648]
[1769359841914,12.01581024,2895.2,2894.3,0.86375525]
[1769359842118,12.01581024,2895.2,2894.3,0.0864648]
[1769359842477,12.01581024,2895.2,2894.3,0.95022988]
[1769359842698,12.01581024,2895.2,2894.3,0.0864648]
[1769359843419,12.01581024,2895.2,2894.2,0.724]
[1769359843589,12.01581024,2895.2,2894.3,1.03544117]
[1769359843789,12.01581024,2895.2,2894.2,0.724]
[1769359844223,12.01581024,2895.2,2894.3,0.724]
[1769359844806,12.01581024,2895.2,2894.4,0.002]
[1769359845131,0.001,2895.0,2894.4,0.002]
[1769359847123,0.001,2895.0,2894.5,0.724]
[1769359848095,0.001,2895.0,2894.5,10.26794686]
[1769359848398,12.89417144,2895.6,2894.8,0.0864648]
[1769359849006,12.89417144,2895.6,2894.6,10.65986129]
[1769359849319,12.89417144,2895.6,2894.8,0.0864648]
[1769359849818,12.89417144,2895.6,2894.6,10.57339649]
[1769359850118,12.89417144,2895.6,2894.9,0.724]
[1769359850294,12.89417144,2895.6,2894.4,0.86571838]
[1769359850499,12.89417144,2895.6,2894.5,1.773513]
[1769359852025,0.0008,2895.6,2894.7,9.54294686]
[1769359852226,12.89417144,2896.5,2895.0,0.0864648]
[1769359852539,12.89417144,2896.5,2894.9,9.54294686]
[1769359852697,12.89417144,2896.5,2895.1,0.724]
[1769359853390,12.89417144,2896.5,2895.2,0.0864648]
[1769359853704,12.89417144,2896.5,2895.3,0.86346837]
[1769359853902,12.89417144,2896.5,2895.6,0.0864648]
[1769359854104,12.89417144,2896.5,2895.4,0.0864648]
[1769359854312,12.89417144,2896.5,2895.5,1.049288]
[1769359855015,12.89417144,2896.5,2895.6,0.0864648]
[1769359855225,12.89417144,2896.5,2895.5,1.049288]
[1769359856540,12.89417144,2896.5,2895.6,0.0864648]
[1769359856728,12.89417144,2896.5,2895.5,1.049288]
[1769359857236,12.89417144,2896.5,2895.6,0.0864648]
[1769359857437,12.89417144,2896.5,2895.7,0.19991596]
[1769359857743,12.89417144,2896.5,2895.8,0.723]
[1769359858640,0.001,2896.3,2895.8,0.723]
[1769359859335,0.001,2896.3,2895.9,0.723]
[1769359859912,0.001,2896.3,2896.0,0.723]
[1769359860426,0.001,2896.3,2896.1,0.723]
[1769359861012,12.89437144,2896.3,2896.2,0.723]
[1769359862247,12.89417144,2897.4,2896.1,10.26594686]
[1769359862462,12.89417144,2897.4,2896.2,2.61279383]
[1769359862628,12.89417144,2897.4,2896.2,0.723]
[1769359862827,12.89417144,2897.4,2896.2,1.58619151]
[1769359863125,12.89417144,2897.4,2896.1,0.86321422]
[1769359863335,12.89417144,2897.4,2896.2,0.723]
[1769359863542,12.89417144,2897.4,2896.2,1.67266458]
[1769359864050,12.89417144,2897.4,2896.2,0.8094648]
[1769359864249,14.18358858,2897.4,2896.2,0.723]
[1769359864916,14.18358858,2897.4,2896.3,0.723]
[1769359866348,14.18358858,2897.4,2896.0,0.0864648]
[1769359866556,14.18358858,2897.4,2896.4,0.723]
[1769359867433,14.18358858,2897.4,2896.5,0.0864648]
[1769359867434,0.0008,2897.4,2896.5,0.0864648]
[1769359867638,0.723,2898.2,2896.5,0.0864648]
[1769359867639,0.0008,2898.3,2897.3,0.0864648]
[1769359867838,12.68953129,2898.3,2897.4,0.723]
[1769359868044,12.68953129,2898.3,2897.5,0.723]
[1769359868265,13.95848442,2898.3,2897.5,0.723]
[1769359868466,13.95848442,2898.3,2897.3,0.86285526]
[1769359868646,13.95848442,2898.3,2897.2,0.0864648]
[1769359868647,13.95848442,2898.3,2897.4,0.723]
[1769359868842,13.95848442,2898.3,2897.5,0.0864648]
[1769359869069,0.0008,2898.3,2897.7,0.0864648]
[1769359869236,0.0008,2898.3,2897.9,0.0864648]
[1769359870598,12.68953129,2898.3,2897.2,0.94935739]
[1769359870781,12.68953129,2898.3,2897.7,0.723]
[1769359870963,13.95848442,2898.3,2897.3,0.0864648]
[1769359871136,13.95848442,2898.3,2897.4,0.723]
[1769359871935,13.95848442,2898.3,2897.0,0.0864648]
[1769359872137,13.95848442,2898.3,2897.2,0.0864648]
[1769359872745,13.95848442,2898.3,2897.3,0.723]
[1769359872962,14.08457973,2898.2,2897.4,0.0864648]
[1769359873134,12.68873129,2898.2,2897.4,0.0864648]
[1769359873470,0.0008,2898.3,2897.6,0.0864648]
[1769359874166,0.0008,2898.3,2897.4,0.0864648]
[1769359874167,12.68873129,2899.6,2898.4,0.0864648]
[1769359874385,12.51490176,2899.6,2898.5,0.723]
[1769359874597,12.68873129,2899.4,2898.5,0.723]
[1769359875550,12.68873129,2899.4,2897.8,0.0864648]
[1769359875782,12.68873129,2899.4,2897.9,0.723]
[1769359875969,12.68873129,2899.4,2897.6,0.0864648]
[1769359875970,12.63873129,2899.4,2897.6,0.94924693]
[1769359876171,12.63873129,2899.4,2897.4,3.53782573]
[1769359876172,12.61173837,2899.2,2897.7,0.723]
[1769359876571,13.47404521,2899.2,2897.6,0.0864648]
[1769359876778,13.47404521,2899.2,2897.6,0.723]
[1769359876977,13.47404521,2899.2,2897.4,0.0864648]
[1769359877294,13.47404521,2899.2,2897.4,0.8094648]
[1769359877451,12.61173837,2899.0,2897.4,0.8094648]
[1769359877772,12.61173837,2899.0,2897.3,0.0864648]
[1769359877773,13.33473837,2899.0,2897.3,0.0864648]
[1769359878453,12.61173837,2898.8,2897.3,0.0864648]
[1769359878686,12.61173837,2898.8,2897.2,0.723]
[1769359878882,12.61173837,2898.6,2897.2,0.723]
[1769359879182,12.61173837,2898.6,2897.3,0.0864648]
[1769359879884,12.61173837,2898.6,2897.7,0.0864648]
[1769359880386,12.61173837,2898.6,2897.6,0.723]
[1769359880610,13.47423965,2898.6,2896.6,0.0884648]
[1769359880771,12.61173837,2898.4,2896.8,0.0864648]
[1769359881308,12.61173837,2898.4,2896.6,0.95154471]
[1769359881309,12.61173837,2898.4,2896.6,0.002]
[1769359882460,12.61173837,2898.2,2896.6,0.002]
[1769359882988,12.61173837,2898.2,2896.9,0.0864648]
[1769359883604,12.61173837,2898.2,2896.6,0.725]
[1769359883605,12.61273837,2898.2,2896.6,0.725]
[1769359883764,12.61173837,2898.0,2896.6,0.002]
[1769359883962,12.61173837,2898.0,2896.6,0.0884648]
[1769359885166,12.61173837,2898.0,2896.6,0.002]
[1769359885365,13.47440874,2898.0,2896.6,0.002]
[1769359889109,12.61173837,2897.8,2896.6,0.002]
[1769359889309,12.61173837,2897.4,2895.6,0.0864648]
[1769359889613,0.86347037,2898.0,2895.8,0.0864648]
[1769359889614,12.61173837,2897.2,2895.8,0.0864648]
[1769359889801,12.61173837,2897.0,2895.8,0.0864648]
[1769359889995,12.61173837,2897.0,2895.6,0.94983704]
[1769359890198,12.61173837,2897.0,2895.8,0.0864648]
[1769359890400,13.94521221,2897.0,2895.8,0.0864648]
[1769359891009,13.94521221,2897.0,2895.6,0.0864648]
[1769359891875,14.80818203,2897.0,2895.2,0.86347779]
[1769359892080,14.80818203,2897.0,2895.3,0.94993256]
[1769359892280,12.61173837,2896.8,2895.3,0.94993256]
[1769359893001,12.61173837,2896.8,2895.3,0.0864648]
[1769359893306,12.61173837,2896.8,2895.3,0.94992738]
[1769359893811,12.61173837,2896.8,2895.3,0.0864648]
[1769359894616,12.61173837,2896.8,2895.3,0.94992935]
[1769359894815,12.02983862,2896.6,2895.3,0.0864648]
[1769359895195,12.02983862,2896.6,2895.3,0.9499292]
[1769359895515,12.02983862,2897.0,2895.9,0.0864648]
[1769359896081,12.02983862,2897.0,2896.0,0.03453038]
[1769359896414,13.30512248,2897.0,2896.0,0.03453038]
[1769359896716,13.30512248,2897.0,2895.7,9.35666619]
[1769359897018,12.02983862,2897.0,2896.1,0.0864648]
[1769359897380,12.02983862,2897.0,2895.9,0.0864648]
[1769359897589,12.02983862,2897.0,2896.1,0.0864648]
[1769359897793,12.02983862,2897.3,2895.9,9.35666619]
[1769359898114,12.02983862,2897.3,2896.1,0.0864648]
[1769359898302,13.30512248,2897.3,2896.1,0.9443131]
[1769359898703,13.30512248,2897.3,2895.9,0.723]
[1769359898904,13.30512248,2897.3,2896.0,0.0864648]
[1769359899314,12.02983862,2897.3,2896.2,0.0864648]
[1769359900618,0.723,2897.5,2896.4,0.0864648]
[1769359900999,12.75283862,2897.5,2896.4,0.0864648]
[1769359903194,12.75283862,2897.5,2896.0,0.0864648]
[1769359903195,13.61565253,2897.5,2896.0,0.0864648]
[1769359903408,13.61565253,2897.5,2895.9,9.27020139]
[1769359903409,12.02983862,2897.3,2896.1,1.65866662]
[1769359904455,12.02983862,2897.3,2896.2,0.0864648]
[1769359905403,18.37983862,2897.9,2896.4,9.27020139]
[1769359905623,12.02983862,2897.8,2896.6,0.0864648]
[1769359906851,12.89257584,2897.8,2896.1,4.80213142]
[1769359907000,12.02983862,2897.6,2896.2,0.5665382]
[1769359907506,12.75283862,2897.6,2896.2,0.5665382]
[1769359907715,12.02983862,2896.9,2895.3,0.002]
[1769359907915,12.02983862,2896.4,2894.7,0.00260196]
[1769359908138,12.02983862,2896.2,2894.7,0.00260196]
[1769359908324,12.02983862,2896.2,2894.7,0.72560196]
[1769359908631,13.31913951,2896.1,2894.9,0.002]
[1769359910014,0.86325966,2896.0,2894.9,0.002]
[1769359910214,12.02983862,2895.9,2894.9,0.002]
[1769359912310,12.89315278,2895.9,2894.9,0.002]
[1769359915257,12.02983862,2896.2,2895.0,0.0864648]
[1769359915411,12.02983862,2896.5,2895.1,0.9449131]
[1769359915608,12.02983862,2896.5,2895.2,0.0864648]
[1769359915841,12.02983862,2896.5,2895.2,9.44713099]
[1769359916144,12.02983862,2896.5,2895.4,0.0864648]
[1769359916323,12.02983862,2896.5,2895.3,1.03920441]
[1769359917108,12.02983862,2896.5,2895.4,0.723]
[1769359917955,12.02983862,2896.4,2895.0,0.0864648]
[1769359918157,12.02983862,2896.4,2895.1,0.723]
[1769359918957,12.02983862,2896.4,2895.2,0.0864648]
[1769359920421,12.89298222,2896.4,2895.3,0.723]
[1769359920621,13.47107608,2896.4,2895.3,0.723]
[1769359920828,0.001,2896.3,2895.3,0.723]
[1769359921660,0.001,2896.3,2895.0,0.0864648]
[1769359921661,0.001,2896.3,2895.0,9.44713099]
[1769359921838,12.03083862,2896.3,2895.4,0.723]
[1769359923129,12.03083862,2896.3,2895.0,9.44713099]
[1769359923359,12.03083862,2896.3,2895.1,1.6679131]
[1769359923698,12.03083862,2896.3,2895.1,0.723]
[1769359924586,12.89401189,2896.3,2895.1,0.723]
[1769359924787,12.03083862,2896.3,2895.1,0.723]
[1769359925082,12.89401644,2896.3,2895.2,0.723]
[1769359926389,12.89401644,2896.3,2894.9,0.002]
[1769359926600,12.89401644,2896.3,2895.0,0.723]
[1769359926601,12.06299658,2896.1,2895.0,0.723]
[1769359927585,1.63465823,2896.2,2895.3,0.0864648]
[1769359927888,0.001,2896.3,2895.3,0.0864648]
[1769359928285,12.06299658,2896.2,2894.9,0.002]
[1769359928679,12.06299658,2896.2,2895.0,0.8094648]
[1769359929208,12.06299658,2896.2,2895.1,0.03454112]
[1769359929412,12.06299658,2896.2,2895.2,0.0864648]
[1769359929712,0.001,2896.3,2895.2,11.35789856]
[1769359930412,0.001,2896.3,2895.3,0.02423175]
[1769359930788,0.001,2896.3,2895.3,0.03453873]
[1769359930989,0.001,2896.3,2895.2,11.35789856]
[1769359931713,0.001,2896.3,2895.2,11.27143376]
[1769359931914,0.001,2896.3,2895.3,1.12714338]
[1769359932683,12.06399658,2896.3,2895.3,1.12714338]
[1769359932879,12.06399658,2896.3,2895.4,0.723]
[1769359933203,12.06399658,2896.3,2895.3,0.723]
[1769359934124,12.06299658,2896.0,2895.3,0.723]
[1769359936305,0.001,2896.1,2895.3,0.723]
[1769359938186,0.001,2896.1,2895.4,10.89313099]
[1769359938383,0.001,2896.3,2895.5,1.1616131]
[1769359938817,0.001,2896.3,2895.5,1.2480779]
[1769359939914,0.001,2896.3,2895.5,1.1616131]
[1769359940395,0.001,2896.3,2895.5,1.2480779]
[1769359940592,0.001,2896.3,2895.6,0.723]
[1769359940894,0.001,2896.3,2895.7,0.18846131]
[1769359944433,0.001,2896.3,2895.7,10.9941275]
[1769359945931,0.001,2896.3,2895.7,0.18846131]
[1769359946600,11.97362506,2896.8,2895.7,0.18846131]
[1769359947008,11.97362506,2896.8,2895.7,0.27492611]
[1769359947327,11.97362506,2896.8,2895.8,0.18613042]
[1769359947521,11.97362506,2896.8,2895.9,0.002]
[1769359947931,0.001,2896.1,2895.9,0.002]
[1769359949040,11.97462506,2896.1,2895.6,0.002]
[1769359949339,11.97462506,2896.1,2895.7,0.723]
[1769359951642,13.17208757,2896.1,2895.6,0.002]
[1769359952007,13.17208757,2896.1,2895.7,0.723]
[1769359952311,13.17208757,2896.1,2895.6,0.002]
[1769359952518,14.03532679,2896.1,2895.0,0.002]
[1769359952828,14.03532679,2896.1,2895.3,0.723]
[1769359953008,11.85177274,2895.9,2895.3,0.723]
[1769359953625,11.85177274,2895.9,2895.0,0.002]
[1769359953821,11.85177274,2895.9,2895.2,0.725]
[1769359954410,12.71506768,2895.9,2895.2,0.002]
[1769359955839,12.71506768,2895.9,2895.0,0.002]
[1769359956045,11.85177274,2895.7,2895.0,0.002]
[1769359956407,12.71512398,2895.7,2895.0,0.002]
[1769359958348,11.85177274,2895.7,2895.0,0.002]
[1769359958709,12.71512673,2895.7,2895.0,0.002]
[1769359959711,12.71512389,2895.7,2895.2,0.002]
[1769359959912,11.85177274,2895.5,2895.2,0.002]
[1769359961556,11.85277274,2895.5,2895.2,0.002]
[1769359965366,0.001,2895.5,2895.2,0.002]
[1769359966231,11.85277274,2895.5,2895.0,0.002]
[1769359967814,0.001,2895.5,2895.0,0.002]
[1769359968265,12.71601387,2896.1,2895.0,12.68843281]
[1769359968266,11.85277274,2896.1,2895.0,12.68843281]
[1769359969245,12.71600447,2896.1,2895.0,12.68843281]
[1769359969450,12.71600447,2896.1,2895.0,1.15576662]
[1769359969652,12.71600447,2896.1,2895.0,0.002]
[1769359969817,11.85277274,2896.1,2895.0,0.002]
[1769359971557,12.71601369,2896.1,2895.1,0.723]
[1769359971961,11.85277274,2896.1,2895.1,0.723]
[1769359972350,11.85277274,2896.1,2895.1,12.25566619]
[1769359972677,11.85277274,2896.1,2895.2,1.2344131]
[1769359973440,11.85277274,2896.1,2895.2,1.2364131]
[1769359973656,0.001,2895.9,2895.2,1.2364131]
[1769359976182,11.85177274,2896.5,2895.3,11.61913099]
[1769359976360,11.85177274,2896.5,2895.3,11.53266619]
[1769359976361,12.71489205,2896.5,2895.3,11.53266619]
[1769359976568,13.46848263,2896.5,2895.4,1.99990793]
[1769359976878,13.46848263,2896.5,2895.4,0.723]
[1769359979337,11.85177274,2896.5,2895.4,0.723]
[1769359980073,11.85177274,2896.8,2895.6,11.53166619]
[1769359980275,11.85177274,2896.8,2895.7,0.723]
[1769359981069,11.85177274,2896.8,2895.6,0.723]
[1769359981243,13.12324632,2896.8,2895.6,0.723]
[1769359981443,13.12324632,2896.8,2895.2,11.53366619]
[1769359981650,11.85177274,2896.4,2895.3,0.723]
[1769359981849,11.85177274,2896.4,2895.4,0.723]
[1769359982381,18.20177274,2896.7,2895.4,13.11809749]
[1769359982546,11.85177274,2897.0,2895.8,11.53166619]
[1769359982748,11.85177274,2897.3,2896.0,11.53166619]
[1769359984279,12.3815357,2897.1,2896.1,0.723]
[1769359985794,12.3825357,2897.1,2896.1,0.723]
[1769359985977,12.3825357,2897.1,2895.7,0.0864648]
[1769359986184,12.3825357,2897.1,2895.6,0.0864648]
[1769359986476,13.24546788,2897.1,2895.7,1.1618131]
[1769359986679,13.96846788,2897.1,2895.7,1.1618131]
[1769359986976,13.96846788,2897.1,2895.5,0.723]
[1769359987960,6.35,2897.0,2895.5,0.723]
[1769359988151,0.86302126,2896.8,2895.5,0.723]
[1769359988353,12.3815357,2896.7,2895.5,0.723]
[1769359990188,12.3815357,2896.7,2895.3,0.002]
[1769359990345,12.3815357,2896.5,2895.4,0.723]
[1769359990688,12.3815357,2896.5,2895.3,0.725]
[1769359990852,12.3815357,2896.5,2895.3,0.002]
[1769359993585,12.3815357,2896.5,2895.3,11.62013099]
[1769359993753,12.3815357,2896.5,2895.4,1.24856285]
[1769359994281,13.24449745,2897.0,2895.5,11.61813099]
[1769359994688,12.3815357,2897.0,2895.5,12.48153056]
[1769359994853,12.3815357,2897.0,2895.7,11.61813099]
[1769359995179,13.24450276,2897.0,2895.8,1.1618131]
[1769359995395,13.24450276,2897.0,2895.9,0.723]
[1769359995563,12.3815357,2897.0,2895.9,0.723]
[1769359995962,12.3815357,2897.0,2895.8,0.723]
[1769359997555,0.001,2896.9,2895.8,0.723]
[1769359998765,11.93613979,2896.9,2895.8,0.723]
[1769359998970,13.21615046,2896.9,2895.8,0.723]
[1769359999291,13.21615046,2896.9,2895.9,0.723]
[1769360000265,11.93613979,2896.9,2895.7,0.002]
[1769360000558,11.93613979,2896.9,2895.8,0.723]
[1769360001594,12.79915192,2896.9,2895.7,0.002]
[1769360003597,11.93513979,2895.7,2895.3,0.002]
[1769360003802,11.93513979,2895.7,2895.2,0.002]
[1769360004003,13.49368984,2895.7,2895.2,0.002]
[1769360007383,11.93513979,2896.0,2895.2,0.002]
[1769360009358,12.79840954,2896.0,2895.2,0.002]
[1769360009687,11.93513979,2896.0,2895.2,0.002]
[1769360009883,12.79841361,2896.0,2895.2,0.002]
[1769360011590,12.79841361,2896.0,2895.4,0.002]
[1769360011793,11.93513979,2895.8,2895.4,0.002]
[1769360012356,11.93513979,2895.8,2895.1,0.002]
[1769360012357,12.79846885,2895.8,2895.1,0.002]
[1769360012891,12.79846885,2895.8,2894.5,0.002]
[1769360014893,12.50531772,2895.6,2894.5,0.002]
[1769360015089,12.50531772,2895.4,2894.5,0.002]
[1769360016057,12.50531772,2895.2,2894.5,0.002]
[1769360018705,1.58642276,2895.5,2894.5,0.002]
[1769360018912,0.50399726,2895.4,2894.5,0.002]
[1769360019786,0.723,2895.5,2894.5,0.002]
[1769360020011,12.50531772,2895.8,2894.6,11.53566619]
[1769360020211,13.3686456,2895.8,2894.6,11.53566619]
[1769360020579,12.50531772,2895.8,2894.6,11.53566619]
[1769360020780,13.36863942,2895.8,2894.6,11.53566619]
[1769360021010,1.91699428,2895.7,2894.6,11.53566619]
[1769360021718,0.723,2895.9,2894.7,11.571816]
[1769360021927,13.36854085,2896.2,2894.9,11.53566619]
[1769360022100,12.50531772,2896.0,2894.7,0.00160392]
[1769360022285,12.50531772,2895.8,2894.7,0.00160392]
[1769360023027,12.50531772,2895.6,2894.7,0.00160392]
[1769360023185,12.50531772,2895.4,2894.7,0.00160392]
[1769360023875,1.32283177,2895.5,2894.9,0.002]
[1769360024075,0.001,2895.5,2894.9,0.002]
[1769360031225,12.50631772,2895.5,2894.9,0.002]
[1769360033302,12.50531772,2895.3,2894.9,0.002]
[1769360034628,12.50631772,2895.5,2894.9,0.002]
[1769360034926,0.001,2895.5,2894.9,0.002]
[1769360035099,0.001,2895.5,2895.0,1.15376662]
[1769360035898,0.001,2895.5,2894.9,0.002]
[1769360036632,3.45262889,2896.4,2894.9,0.002]
[1769360036633,18.81504829,2897.0,2895.5,7.21830066]
[1769360036924,18.81504829,2897.0,2895.1,7.21830066]
[1769360036925,12.50631772,2896.7,2895.1,7.21830066]
[1769360037126,12.50631772,2896.7,2895.4,0.724]
[1769360037325,12.50631772,2896.7,2895.2,0.94583065]
[1769360037326,13.36937502,2896.7,2895.2,0.94583065]